[Event "Romanian Rapid Open 2022"]
[Site "Sebes"]
[Date "2022.12.02"]
[Round "2.12"]
[White "Samu, Sorin-Mihai"]
[Black "Ghimpu, Samuel-Timotei"]
[Result "0-1"]
[ECO "B06"]
[WhiteElo "1955"]
[BlackElo "2455"]
[Annotator "TA"]
[PlyCount "76"]
[EventDate "2022.12.02"]
[EventType "rapid"]
[EventCountry "ROU"]
[SourceTitle "playchess.com"]
[Source "ChessBase"]
[SourceQuality "1"]
[TimeControl "600+5"]

{[%evp 9,76,18,19,0,19,29,16,8,20,22,18,-28,-18,-27,-38,-22,-8,-35,-25,-43,-47,-132,-134,-374,-358,-417,-387,-541,-493,-787,-772,-782,-761,-745,-742,-720,-692,-672,-671,-689,-706,-751,-777,-760,-752,-825,-824,-955,-895,-941,-937,-899,-867,-1051,-973,-5278,-12812,-5230,-1137,-12828,-5270,-12838,-12838,-29991,-29992,-29994,-29990,-29990,-29988]} 1. e4 {[%emt 0:00:01]} g6 {[%emt 0:01:10]} 2. d4 {[%emt 0:00:06]} Bg7 {[%emt 0:00:02]} 3. c3 {[%emt 0:00:03]} d6 {[%emt 0:00:09]} 4. Be3 {[%emt 0:00:03]} Nf6 {[%emt 0:00:23][%cal Bg8f6,Bf6h5,Bh5f4][%mdl 32]} 5. f3 {[%emt 0:00:02]} Nbd7 {[%emt 0:00:35]} 6. Nd2 {[%emt 0:00:04] B06: Modern Defence.} e5 {[%emt 0:00:19]} 7. d5 {[%emt 0:00:03]} O-O {[%emt 0:00:16]} 8. Ne2 {[%emt 0:00:13] The position is equal.} c6 {[%emt 0:00:09]} 9. c4 {[%emt 0:00:21] [#]} Nh5 $146 {[%emt 0:00:14]} ({Predecessor:} 9... a5 10. g4 Nc5 11. Ng3 h5 12. g5 Nh7 13. h4 a4 14. Rg1 Qa5 15. Qc2 Bd7 {0-1 (44) Kovacs,L-Todorcevic,M (2385) Val Thorens 1982}) 10. g4 {[%emt 0:00:34]} (10. Nc3 {deserves consideration.}) 10... Nf4 $1 $11 {[%emt 0:00:01]} 11. Nxf4 {[%emt 0:00:25]} exf4 {[%emt 0:00:02]} 12. Bxf4 {[%emt 0:00:03]} Ne5 {[%emt 0:00:21]} 13. Be2 {[%emt 0:00:07]} f5 {[%emt 0:00:01]} 14. exf5 {[%emt 0:01:01]} gxf5 {[%emt 0:00:03]} 15. g5 {[%emt 0:00:01] [#]} (15. O-O $15) 15... Ng6 $1 $17 {[%emt 0:00:26] Black is more active.} 16. Be3 {[%emt 0:00:29] This costs White the game.} (16. Bg3 $17) 16... Re8 $19 {[%emt 0:00:04]} (16... Bxb2 17. Rb1 Be5 18. h4 $17) ({Not} 16... f4 17. Bf2 $17) 17. Qb3 {[%emt 0:00:14]} Qe7 {[%emt 0:00:10]} ({And not} 17... f4 18. Bf2 $17) 18. dxc6 {[%emt 0:00:28]} bxc6 {[%emt 0:01:55] Hoping for ...Nf4.} 19. Ne4 {[%emt 0:00:02]} (19. O-O-O $142 Qxe3 20. Qxe3 Rxe3 21. Rhe1) 19... fxe4 {[%emt 0:00:26]} 20. f4 {[%emt 0:00:02]} Bh3 {[%emt 0:00:19]} 21. Rb1 {[%emt 0:00:24]} Rab8 {[%emt 0:00:06]} 22. Qa3 {[%emt 0:00:08]} d5 {[%emt 0:00:15][%cal Bd6d5,Bd5d4][%mdl 32] [#] And now ...Qxa3 would win.} 23. Qxe7 {[%emt 0:00:10]} Rxe7 {[%emt 0:00:02][%cal Be8e7,Be7f7,Bf7f4][%mdl 32]} 24. Bc5 {[%emt 0:00:31]} Rf7 {[%emt 0:00:10]} 25. Bh5 {[%emt 0:00:20]} Rxb2 {[%emt 0:00:24]} 26. Rxb2 {[%emt 0:00:08]} Bxb2 {[%emt 0:00:02]} 27. Kd2 {[%emt 0:00:12]} d4 {[%emt 0:00:32]} 28. Rb1 {[%emt 0:00:11]} Bc3+ {[%emt 0:00:02]} 29. Kc2 {[%emt 0:00:01]} Rxf4 {[%emt 0:00:04] Strongly threatening ...Rf2+.} 30. Rb8+ {[%emt 0:00:13]} Kg7 {[%emt 0:00:03] Threatens to win with ...Rf2+.} 31. Rb7+ {[%emt 0:00:49]} Rf7 {[%emt 0:00:02]} 32. Rxa7 {[%emt 0:00:01]} Rxa7 {[%emt 0:00:07]} 33. Bxa7 {[%emt 0:00:01]} e3 {[%emt 0:00:14]} 34. a4 {[%emt 0:00:06]} Bf5+ {[%emt 0:00:03]} 35. Kb3 {[%emt 0:00:02]} Nf4 {[%emt 0:00:07]} 36. a5 {[%emt 0:00:16]} Nxh5 {[%emt 0:03:47] Black mates.} 37. a6 Bc8 {[%emt 0:00:00]} 38. Kc2 {[%emt 0:00:17]} Bxa6 {[%emt 0:00:00] Weighted Error Value: White=0.59/Black=0.03 (flawless)} 0-1

[Event "Romanian Rapid Open 2022"]
[Site "Sebes"]
[Date "2022.12.02"]
[Round "2.13"]
[White "Stoleriu, George"]
[Black "Ghita, Vlad-Bogdan"]
[Result "1-0"]
[ECO "B24"]
[WhiteElo "2389"]
[BlackElo "1938"]
[Annotator "TA"]
[PlyCount "73"]
[EventDate "2022.12.02"]
[EventType "rapid"]
[EventCountry "ROU"]
[SourceTitle "playchess.com"]
[Source "ChessBase"]
[SourceQuality "1"]
[TimeControl "600+5"]

{[%evp 16,73,-16,-31,-16,-25,-5,-15,-14,-9,12,17,43,27,79,60,48,48,70,70,114,14,15,25,87,22,87,81,71,62,141,135,155,156,162,139,170,160,199,146,125,141,354,354,354,354,354,354,354,354,346,337,379,354,441,441,29997,29998,29998,29999]} 1. e4 {[%emt 0:00:01]} c5 {[%emt 0:00:02]} 2. Nc3 {[%emt 0:00:02]} e6 {[%emt 0:00:02]} 3. f4 {[%emt 0:00:01]} Nc6 {[%emt 0:00:03]} 4. Nf3 {[%emt 0:00:03]} Nge7 {[%emt 0:00:11]} 5. g3 {[%emt 0:00:04]} d5 {[%emt 0:00:03]} 6. d3 {[%emt 0:00:02]} g6 {[%emt 0:00:16]} 7. Bg2 {[%emt 0:00:02]} Bg7 {[%emt 0:00:06]} 8. O-O {[%emt 0:00:03]} O-O {[%emt 0:00:05]} 9. Bd2 {[%emt 0:01:12]} Rb8 {[%emt 0:00:02] B24: Closed Sicilian: 3 g3 sidelines.} 10. Qe1 {[%emt 0:00:58]} b5 {[%emt 0:00:10]} 11. Qf2 {[%emt 0:00:10] [#]} Qb6 $146 {[%emt 0:00:51] The position is equal.} ({Predecessor:} 11... b4 12. Nd1 dxe4 13. dxe4 Nd4 14. c3 bxc3 15. bxc3 Nxf3+ 16. Bxf3 Ba6 17. Re1 Qa5 {0-1 (41) Zoellner,R (1804)-Von Loehneysen,L (1980) Berlin 2006}) 12. Kh1 {[%emt 0:00:40]} Nd4 {[%emt 0:00:18]} 13. Be3 $1 {[%emt 0:00:18]} b4 {[%emt 0:00:42]} 14. Na4 {[%emt 0:00:15]} Qb5 {[%emt 0:00:22] [#]} (14... Qc7 $11 {remains equal.}) 15. Nxc5 $1 $16 {[%emt 0:01:59]} Nxf3 {[%emt 0:00:24]} 16. Bxf3 {[%emt 0:00:08]} (16. Qxf3 $2 d4 17. Nxe6 Bxe6 $19) 16... Bxb2 {[%emt 0:00:18]} 17. Rab1 {[%emt 0:00:11]} Bg7 {[%emt 0:00:21]} 18. Nb3 {[%emt 0:03:10]} (18. a3 $16 a5 19. axb4) 18... dxe4 {[%emt 0:00:48]} 19. dxe4 {[%emt 0:00:19]} Nc6 {[%emt 0:00:13]} (19... Bb7 $11) 20. Nc5 {[%emt 0:01:08]} (20. Bxa7 $6 Nxa7 21. Qxa7 e5 $15) (20. e5 $16) 20... Rd8 {[%emt 0:00:44]} (20... e5 $11 {keeps the balance.}) 21. e5 {[%emt 0:00:18][%cal Oc2c4] [#] Strongly threatening c4!} Ne7 {[%emt 0:00:36] Inhibits c4.} 22. Ne4 {[%emt 0:00:05]} Nd5 {[%emt 0:01:05]} (22... Bb7 $14) 23. Nd6 {[%emt 0:00:10]} Qa5 {[%emt 0:00:21]} 24. Bxa7 {[%emt 0:00:12] White is much more active.} Ra8 {[%emt 0:00:08]} 25. Bd4 $36 {[%emt 0:00:02][%cal Oa2a3][%mdl 2048] Threatens to win with a3! White is on the roll.} Ba6 {[%emt 0:00:28] Against a3} 26. Rfd1 {[%emt 0:00:01][%cal Oa2a3]} Rab8 {[%emt 0:01:18] Against a3} 27. Ba7 {[%emt 0:00:11]} ({White should try} 27. Rb3 $18) 27... Nc3 {[%emt 0:00:12]} 28. Bxb8 {[%emt 0:00:06]} Nxd1 $2 {[%emt 0:00:03] This costs Black the game.} (28... Rxb8 $16 {is a better defense.} 29. Nxf7 (29. Qa7 Rf8 $16) 29... Bb7) 29. Rxd1 $18 {[%emt 0:00:02]} (29. Qa7 b3 30. Rxb3 (30. Rxd1 bxc2 31. Rg1 Qc3 $17) (30. Bxd1 $2 {too greedy.} Rxd6 31. Bf3 bxc2 $19) 30... Qd2 $18) 29... Rxb8 {[%emt 0:00:01]} 30. Qa7 $1 {[%emt 0:00:12][%csl LRb8,LRf7]} Rf8 {[%emt 0:00:09]} 31. Be2 {[%emt 0:00:08]} Qxa2 {[%emt 0:00:15][%cal Oa6c4]} 32. Qxa6 {[%emt 0:00:07]} Qxc2 {[%emt 0:00:02]} 33. Qc4 {[%emt 0:00:05]} Qb2 {[%emt 0:00:08]} 34. Bd3 {[%emt 0:00:12]} Ra8 {[%emt 0:00:03]} 35. Qc6 {[%emt 0:00:10]} Ra2 {[%emt 0:00:16]} (35... Rf8 $18 36. Be4 Qe2) 36. Qe8+ {[%emt 0:00:01]} Bf8 {[%emt 0:00:01]} 37. Qxf7+ {[%emt 0:00:02] Weighted Error Value: White=0.16 (very precise) /Black=0.54} 1-0

[Event "Romanian Rapid Open 2022"]
[Site "Sebes"]
[Date "2022.12.02"]
[Round "2.14"]
[White "Matasaru, Stephanie"]
[Black "Soltanici, Ruslan"]
[Result "0-1"]
[ECO "B81"]
[WhiteElo "1975"]
[BlackElo "2357"]
[Annotator "TA"]
[PlyCount "164"]
[EventDate "2022.12.02"]
[EventType "rapid"]
[EventCountry "ROU"]
[SourceTitle "playchess.com"]
[Source "ChessBase"]
[SourceQuality "1"]
[TimeControl "600+5"]

{[%evp 15,164,78,77,34,70,45,43,24,41,0,39,6,62,-27,0,-36,-41,-52,-28,-29,-45,-73,-68,-169,-93,-129,-113,-202,-134,-171,-177,-221,-208,-209,-185,-362,-202,-861,-850,-817,-183,-168,0,0,0,0,0,-332,-331,-849,-244,-1748,-1198,-2098,-1985,-2014,-1892,-1535,835,775,773,713,1000,1024,1019,976,934,0,0,-742,-722,-976,-958,-1044,106,-417,-410,-447,0,-399,0,0,0,0,0,0,0,0,0,-1009,0,0,0,0,0,-1404,-1387,-29986,-29987,-29981,-4686,-29995,-29996,-29996,-2197,-2202,-1106,-801,-437,-1711,-1666,-2666,-2055,-5820,-4850,-2003,-614,-5181,-1293,-1520,-1393,-1431,-1444,-29976,-29977,-29972,-29977,-29963,0,-2181,-1906,-5089,-2662,-29979,-29980,-29977,-29975,-29978,-29976,-29976,-29977,-29977,-29976,-29978,-29979,-29980,-29981,-29988,-29989,-29990,-29991]} 1. e4 {[%emt 0:00:01]} c5 {[%emt 0:00:03]} 2. Nf3 {[%emt 0:00:02]} d6 {[%emt 0:00:01]} 3. d4 {[%emt 0:00:01]} cxd4 {[%emt 0:00:02]} 4. Nxd4 {[%emt 0:00:02]} Nf6 {[%emt 0:00:02]} 5. Nc3 {[%emt 0:00:01]} a6 {[%emt 0:00:01]} 6. Be3 {[%emt 0:00:03]} e6 {[%emt 0:00:01]} 7. g4 {[%emt 0:00:02][%cal Bg2g4,Bg4g5][%mdl 32]} b5 {[%emt 0:01:53]} 8. g5 {[%emt 0:00:06]} Nfd7 {[%emt 0:00:01][%cal Bf6d7,Bd7b6,Bb6c4][%mdl 32]} 9. h4 {[%emt 0:01:11] B81: Sicilian Scheveningen: Keres Attack.} Bb7 {[%emt 0:00:09]} 10. Bg2 {[%emt 0:00:03]} Nb6 {[%emt 0:01:13] [#]} 11. Qh5 $146 {[%emt 0:01:57] White is slightly better.} ({Predecessor:} 11. h5 b4 12. Nce2 N8d7 13. g6 hxg6 14. hxg6 Rxh1+ 15. Bxh1 Qh4 16. gxf7+ Kxf7 17. Ng3 {0-1 (34) Radzimski,A (1627)-Zylka,S (2378) Bohumin 2022}) 11... g6 {[%emt 0:00:39]} 12. Qg4 {[%emt 0:00:21]} (12. Qf3 {with more complications.} Bg7 13. O-O-O N8d7 14. Kb1) 12... b4 {[%emt 0:00:28] Inhibits h5.} 13. Nce2 {[%emt 0:00:17][%cal Od4e6]} e5 {[%emt 0:00:01] [#]} (13... Nc4 $11) 14. Nb3 {[%emt 0:00:56]} (14. Ne6 $1 $14 fxe6 15. h5 (15. Qxe6+ Be7 $17) 15... gxh5 16. Qxe6+ Qe7 17. Qxe7+ Bxe7 18. Bxb6) 14... Nc4 $11 {[%emt 0:00:02][%cal Oc4e3]} 15. O-O-O {[%emt 0:01:17]} Nd7 {[%emt 0:01:37]} 16. h5 {[%emt 0:00:13]} Rg8 {[%emt 0:00:29]} 17. hxg6 hxg6 {[%emt 0:00:01]} 18. Qg3 {[%emt 0:00:40]} Be7 {[%emt 0:00:44]} 19. Rh7 {[%emt 0:00:56]} (19. f4 $15) 19... Qc7 {[%emt 0:01:06]} (19... Nxe3 $19 20. fxe3 Nf8) 20. Kb1 {[%emt 0:00:35]} a5 {[%emt 0:00:33]} 21. f4 {[%emt 0:00:17]} (21. Qf3 $17 Rf8 22. Nd2) 21... Rc8 {[%emt 0:00:10]} 22. Rc1 {[%emt 0:00:18]} Ba6 {[%emt 0:00:38]} 23. fxe5 {[%emt 0:00:16]} dxe5 {[%emt 0:00:26]} (23... Nxe3 24. exd6 Qxd6 25. Qxe3 $11) 24. Qf2 {[%emt 0:00:14]} Rf8 {[%emt 0:00:05] White must now prevent ...a4.} 25. Ng3 $2 {[%emt 0:00:16]} (25. Bh3) 25... a4 {[%emt 0:00:15]} (25... Nxe3 $142 26. Qxe3 a4) 26. Nd2 $2 {[%emt 0:00:03] [#]} (26. Bf1) 26... Na3+ $1 $19 {[%emt 0:00:28][%mdl 512]} 27. bxa3 {[%emt 0:00:52]} bxa3 $2 {[%emt 0:00:01]} (27... Qc3 28. Nf5 gxf5) 28. c4 {[%emt 0:00:03]} Qb7+ $2 {[%emt 0:00:15]} (28... Rb8+ $1 $19 29. Kc2 (29. Ka1 $2 Rb2 $17) 29... Nc5 30. Bxc5 Bxc5) 29. Kc2 $1 $11 {[%emt 0:00:02] Kd1 is the strong threat.} Qb2+ $1 {[%emt 0:00:06]} 30. Kd1 {[%emt 0:00:03] Strongly threatening Bh3.} Qxa2 {[%emt 0:00:02][%cal Ra6c4]} 31. c5 {[%emt 0:00:13][%mdl 8192]} (31. Bf1 $1 $11) 31... Qb2 $19 {[%emt 0:00:51]} 32. c6 {[%emt 0:00:16] [#]} (32. Rc2 Qa1+ 33. Rc1) 32... Nb8 $2 {[%emt 0:00:01]} (32... Nc5 $1 {[%mdl 512]} 33. Rb1 (33. Bxc5 a2) 33... Nd3 34. Rxb2 Nxb2+ 35. Ke1 Rxc6) 33. Bh3 $2 {[%emt 0:00:33] [#]} (33. Rc2 Qb4 34. Bf1 (34. c7 $2 Bd3 $19) 34... Rxc6 35. Ra2 (35. Rxc6 $2 Nxc6 36. Bxa6 a2 $19)) 33... a2 $1 {[%emt 0:00:16]} 34. Bd7+ {[%emt 0:00:05]} (34. Bxc8 Qxc1+) 34... Nxd7 {[%emt 0:00:07]} 35. cxd7+ Kxd7 {[%emt 0:00:01][%csl Gb2][%cal Rc8c1]} 36. Nc4 {[%emt 0:00:33]} Bxc4 $4 {[%emt 0:00:09][%mdl 8192]} (36... a1=R 37. Nxb2 Rcxc1+ 38. Bxc1 $18) (36... Qb3+ $19 37. Ke1 Bb4+ 38. Bd2 Qxc4 39. Rxc4 a1=Q+ 40. Ke2 Bxc4+ 41. Kf3 Qd1+ 42. Kg2 Qxd2 43. Qxd2+ Bxd2) 37. Qxb2 $18 {[%emt 0:00:03][%cal Oc1c4]} Bb3+ {[%emt 0:00:07]} 38. Ke1 {[%emt 0:00:01]} Bb4+ {[%emt 0:00:02]} 39. Kf2 {[%emt 0:00:03]} Rxc1 {[%emt 0:00:04]} 40. Qxc1 {[%emt 0:00:01]} Rc8 {[%emt 0:00:03]} 41. Qa1 $2 {[%emt 0:00:04]} (41. Qf1 $18) 41... Bc3 $11 {[%emt 0:00:02] This pair of bishops is nice.} 42. Qh1 {[%emt 0:00:03][%mdl 8192]} (42. Rxf7+ $2 Bxf7 43. Qf1 Rc6 $19) (42. Qf1 $11 a1=Q 43. Qb5+ Rc6 44. Qb7+ Rc7 45. Qb5+ Rc6 46. Qb7+ Rc7 47. Qb5+ Rc6) 42... a1=Q $19 {[%emt 0:00:02] Threatens to win with ...a3.} (42... a1=B 43. Qh3+ Kc7 44. Bb6+ $1 {[%mdl 512]} Kb8 45. Ne2 Bd4+ 46. Nxd4 Bxd4+ 47. Bxd4 exd4 48. Qd7 $18) 43. Qh3+ {[%emt 0:00:02]} Kc7 {[%emt 0:00:11]} 44. Ne2 {[%emt 0:00:01]} Bd4 $2 {[%emt 0:00:07]} (44... Qe1+ $19 45. Kf3 Rd8) 45. Bxd4 $4 {[%emt 0:00:03][%mdl 8192]} (45. Nxd4 $16 {is forced if you want to stay better.} Qb2+ 46. Kg3 (46. Ne2 Bc4 $15)) 45... exd4 {[%emt 0:00:01] Chess con chili.} 46. Qg3+ {[%emt 0:00:01]} Kd7 $2 {[%emt 0:00:09]} ({Better is} 46... Kb7 $19 47. Qe5 (47. Qd6 $2 Bc4 $19) 47... Bc4 48. Nxd4 a3) 47. Qe5 $2 {[%emt 0:00:02][%mdl 8192]} (47. Qh3+ $11 {and White has nothing to worry.} Kc7 48. Rh8) 47... Rc2 $2 {[%emt 0:00:03]} (47... Bc4 $19 48. Rh3 Bxe2 49. Qd5+ Kc7 50. Kxe2 Qb2+ 51. Ke1 Kb6 52. Qd6+ Ka5 53. Qd5+ Ka6 54. Qd6+ Qb6 55. Qxb6+ Kxb6) 48. Qb5+ $11 {[%emt 0:00:04]} Kc7 {[%emt 0:00:06]} 49. Qe5+ {[%emt 0:00:03]} Kb6 {[%emt 0:00:06][%cal Oc2e2]} (49... Kc6 $5 50. Qe8+ $8 Kc7 51. Qe7+ Kb6 52. Qd6+ Kb7 53. Qe7+ Kc6 54. Qe8+ Kd6 55. Qd8+ Ke6 56. Qe8+ Kd6 57. Qd8+ Ke6 58. Qe8+ Kd6 $11) 50. Qd6+ {[%emt 0:00:04]} Kb5 {[%emt 0:00:05]} 51. Qb8+ {[%emt 0:00:04]} (51. Rh8 Rxe2+ $1 {[%mdl 512]} 52. Kxe2 Bc4+ 53. Kf3 Qf1+ 54. Kg3 Qg1+ 55. Kf3 (55. Kf4 Qe3+ 56. Ke5 Qg3+ 57. Kxd4 Qxd6+ 58. Ke3 Qg3+ 59. Kd4 Qg1+ 60. Ke5 Qxg5+ 61. Kd4 Qc5+ 62. Kc3 Qe3+ 63. Kb2 Qd2+ 64. Kb1 Bd3+ 65. Ka1 Qc1+ 66. Ka2 Bc4#) 55... Qe3+ 56. Kg2 Qxe4+ 57. Kh2 Qe2+ 58. Kh1 Qf3+ 59. Kg1 Qe3+ 60. Kh2 Qf2+ 61. Kh1 Qe1+ 62. Kh2 Qd2+ 63. Kh1 Be6 64. Rb8+ Kc4 65. Qc6+ Kd3 66. Qf3+ Qe3 67. Qd1+ Ke4 68. Qc2+ Kf4 69. Qh2+ Kxg5 70. Rb5+ Kg4 $19) 51... Kc4 {[%emt 0:00:03]} 52. Qc8+ $2 {[%emt 0:00:02][%mdl 8192]} (52. Qc7+ $11 Kb4 53. Qd6+ Ka5 54. Qd8+ Kb5 55. Qb8+ Kc4 56. Qc7+ Kb4 57. Qd6+ Kb5 58. Qb8+ (58. Rh8 $2 Rxe2+ 59. Kxe2 Qd1+ 60. Kf2 Qd2+ 61. Kf1 Qc1+ 62. Kf2 Qd2+ 63. Kf1 Qd3+ 64. Kg2 Qxe4+ 65. Kg1 Qe3+ 66. Kh2 Qd2+ 67. Kh1 Be6 $19)) 52... Kb4 $2 {[%emt 0:00:09]} (52... Kd3 $1 $19 53. Qg4 Rd2) 53. Qf8+ {[%emt 0:00:03]} Rc5 {[%emt 0:00:13]} 54. Qb8+ $1 {[%emt 0:00:11]} Kc4 {[%emt 0:00:00] aiming for ...d3.} 55. Rxf7 $2 {[%emt 0:00:11][%mdl 8192] White is on the road to losing.} (55. Qb6 $11) 55... d3 $19 {[%emt 0:00:00]} (55... Rxg5 $2 56. Rd7 Rh5 57. Qd6 $18 (57. Rxd4+ Qxd4+ 58. Nxd4 Kxd4 $11)) 56. Nf4 {[%emt 0:00:31]} Qd4+ {[%emt 0:00:04]} (56... Rxg5 57. Qc8+ Rc5 58. Qe6+ Kb4 59. Rb7+ Ka3 60. Rxb3+ $1 axb3 61. Qa6+ Kb2 62. Nxd3+ Kc3 63. Qxa1+ $18) 57. Kg3 {[%emt 0:00:03]} Qe3+ {[%emt 0:00:03]} (57... d2 $142 58. Nh3 d1=Q 59. Qf4 Kb4 60. Rf6 Rc3+ 61. Kg2 Rxh3 $1 {[%mdl 512]} 62. Rb6+ Qxb6 63. Qf8+ Kc3 64. Qc8+ Kb2 65. Qh8+ Rxh8 66. Kg3 Qe3+ 67. Kg2 Qh1#) 58. Kg4 {[%emt 0:00:03]} Bd1+ {[%emt 0:00:02]} 59. Kh4 {[%emt 0:00:05]} Qf2+ {[%emt 0:00:11]} (59... Qe1+ $142 60. Kh3 Qh1+ 61. Kg3 Rxg5+ 62. Kf2 Qg1#) 60. Kh3 {[%emt 0:00:01]} Qf3+ {[%emt 0:00:04]} 61. Kh2 {[%emt 0:00:04]} Qxe4 {[%emt 0:00:04]} 62. Qb1 {[%emt 0:00:14]} (62. Ng2 $142 Rb5 63. Qc8+ Rc5 64. Qb8) 62... Bc2 {[%emt 0:00:02]} 63. Qa2+ {[%emt 0:00:01]} Kb4 {[%emt 0:00:12]} 64. Qb2+ {[%emt 0:00:08]} Bb3 {[%emt 0:00:03]} 65. Qd2+ {[%emt 0:00:02]} Kc4 {[%emt 0:00:03]} (65... Ka3 $142 66. Nxd3 Rc2 67. Qxc2 Bxc2) 66. Qc1+ {[%emt 0:00:07]} Bc2 {[%emt 0:00:07]} (66... Kb5 $142 67. Rb7+ Qxb7) 67. Qd2 {[%emt 0:00:11]} Qe5 {[%emt 0:00:06] Hoping for ...a3.} 68. Rf6 {[%emt 0:00:09]} Qxg5 {[%emt 0:00:04]} 69. Re6 {[%emt 0:00:07]} Qh6+ {[%emt 0:00:06]} 70. Kg1 {[%emt 0:00:04]} Rg5+ {[%emt 0:00:05]} 71. Ng2 {[%emt 0:00:01] [#]} Qh3 $2 {[%emt 0:00:07]} (71... Rxg2+ $1 {mates} 72. Qxg2 Qc1+ 73. Kh2 Qf4+ 74. Kh3 Qf5+ 75. Qg4+ Qxg4+ 76. Kxg4 d2 77. Kg5 d1=Q 78. Re7 a3 79. Rc7+ Kb5 80. Rb7+ Ka6 81. Re7 a2 82. Re6+ Kb5 83. Re5+ Kc4 84. Re8 Qd2+ 85. Kf6 a1=Q+ 86. Kf7 Qd7+ 87. Re7 Qf1+ 88. Kg7 Qxe7+ 89. Kh8 Qff8#) 72. Qxg5 $4 {[%emt 0:00:06][%mdl 8192]} (72. Qf4+ $11 Kb3 73. Rb6+ Ka2 74. Qxg5) 72... Qxe6 $11 {[%emt 0:00:03][%mdl 4096] Endgame KQB-KQN} 73. Qf4+ {[%emt 0:00:02]} Kb3 {[%emt 0:00:02] ( -> ...Qe2)} 74. Qb8+ {[%emt 0:00:05]} Ka2 {[%emt 0:00:02] Black mates.} 75. Qb4 {[%emt 0:00:07]} a3 {[%emt 0:00:05][%cal Ba4a3,Ba3a2][%mdl 32]} 76. Qc3 {[%emt 0:00:06]} g5 {[%emt 0:00:04]} 77. Qd2 {[%emt 0:00:03]} Qb6+ {[%emt 0:00:12]} 78. Kh2 {[%emt 0:00:04]} Kb2 {[%emt 0:00:04]} 79. Ne3 {[%emt 0:00:05]} Qc7+ {[%emt 0:00:08]} 80. Kg2 {[%emt 0:00:04]} a2 {[%emt 0:00:02]} 81. Nd1+ {[%emt 0:00:09]} Kb3 {[%emt 0:00:04]} 82. Qc1 {[%emt 0:00:10]} Qe5 {[%emt 0:00:01] Weighted Error Value: White=1.48/Black=0.90} 0-1

[Event "Romanian Rapid Open 2022"]
[Site "Sebes"]
[Date "2022.12.02"]
[Round "2.15"]
[White "Sfarlog, Tudor-Vlad"]
[Black "Coicev, Matei-Andrei"]
[Result "1/2-1/2"]
[ECO "E17"]
[WhiteElo "2283"]
[BlackElo "2009"]
[Annotator "TA"]
[PlyCount "75"]
[EventDate "2022.12.02"]
[EventType "rapid"]
[EventCountry "ROU"]
[SourceTitle "playchess.com"]
[Source "ChessBase"]
[SourceQuality "1"]
[TimeControl "600+5"]

{[%evp 19,75,10,37,13,18,16,4,0,0,10,73,79,96,4,96,66,21,29,93,81,66,77,89,91,91,95,68,75,153,5,0,0,24,38,27,19,55,41,46,35,55,55,55,55,55,55,187,198,198,191,194,206,199,100,85,76,84,83]} 1. Nf3 {[%emt 0:00:03]} Nf6 {[%emt 0:00:02]} 2. c4 {[%emt 0:00:01]} e6 {[%emt 0:00:03]} 3. g3 {[%emt 0:00:01]} b6 {[%emt 0:00:01]} 4. Bg2 {[%emt 0:00:02]} Bb7 {[%emt 0:00:01]} 5. O-O {[%emt 0:00:02]} Be7 {[%emt 0:00:09]} 6. Nc3 {[%emt 0:00:02]} O-O {[%emt 0:00:03]} 7. Re1 {[%emt 0:00:08]} d5 {[%emt 0:00:42]} 8. cxd5 {[%emt 0:00:06]} exd5 {[%emt 0:00:02]} 9. d4 {[%emt 0:00:02]} Ne4 {[%emt 0:00:26]} 10. Bf4 {[%emt 0:00:24]} Nd7 {[%emt 0:01:49]} 11. Rc1 {[%emt 0:00:09][%cal Of4c7,Ba1c1,Bc1c4,Bc4c6][%mdl 32] Black should prevent Bxc7! E17: Queen's Indian: 4 g3 Bb7 5 Bg2 Be7.} (11. Qb3 $5 {[%cal Rc3d5]}) 11... Nxc3 {[%emt 0:00:52]} 12. bxc3 {[%emt 0:00:02]} Nf6 {[%emt 0:00:15] [#]} 13. c4 $146 {[%emt 0:02:24] The position is equal.} ({Predecessor:} 13. Ne5 c5 14. c4 cxd4 15. cxd5 Bxd5 16. Nc6 Bxc6 17. Bxc6 Rc8 18. Rc4 b5 19. Bxb5 {½-½ (49) Bogner,S (2584)-Klauser,M (2385) Leukerbad 2019}) 13... dxc4 {[%emt 0:03:10]} 14. Rxc4 {[%emt 0:00:02]} Nd5 {[%emt 0:00:02]} (14... c5 $11 {remains equal.}) 15. Ne5 $16 {[%emt 0:00:36]} Rb8 {[%emt 0:02:31]} 16. Bc1 {[%emt 0:01:28]} (16. Bd2 $16) 16... Bf6 {[%emt 0:00:18]} (16... b5 $11 {keeps the balance.} 17. Rc2 Nb4) 17. Nc6 {[%emt 0:01:05] White has more active pieces. The black rooks are badly placed.} Bxc6 {[%emt 0:00:01]} 18. Rxc6 {[%emt 0:00:01]} Ne7 {[%emt 0:00:35]} (18... Nb4 $11) 19. Rc4 {[%emt 0:00:04]} (19. Rxf6 {is interesting.} gxf6 20. e4 c5 21. d5) 19... b5 {[%emt 0:00:02]} 20. Rc2 {[%emt 0:00:17]} Bxd4 {[%emt 0:00:05]} 21. Rd2 {[%emt 0:00:59]} (21. Bg5 {simplifies} Bf6 22. Bxf6 gxf6 23. Qxd8 Rfxd8 24. Rxc7 Nc8 25. Rec1) 21... Bc3 {[%emt 0:00:01]} 22. Rxd8 {[%emt 0:01:07]} Rbxd8 {[%emt 0:00:07]} 23. Bd2 {[%emt 0:00:02]} (23. Be3 {simplifies} Rxd1 24. Rxd1 Bb4 25. Rd7) 23... Rxd2 {[%emt 0:00:05]} (23... Bxd2 $142 24. Rf1 c6) 24. Qc1 {[%emt 0:00:02]} (24. Qb3 $16 b4 25. Rd1) 24... b4 $11 {[%emt 0:00:01]} 25. Rd1 {[%emt 0:01:21]} Rfd8 {[%emt 0:00:01]} 26. Rxd2 {[%emt 0:00:01]} Rxd2 {[%emt 0:00:01]} 27. Qb1 {[%emt 0:00:09] And now Qe4 would win.} ({Reject} 27. a3 c5 $11) 27... Rxe2 {[%emt 0:00:19] [#] Strongly threatening ...Re1+.} 28. Bf1 {[%emt 0:00:02]} Re1 {[%emt 0:00:03]} 29. Qd3 {[%emt 0:00:03][%cal Rd3d8]} g6 {[%emt 0:00:03]} 30. Qd8+ {[%emt 0:00:11]} Kg7 {[%emt 0:00:01]} 31. Qxc7 {[%emt 0:00:02]} Nf5 {[%emt 0:00:23]} 32. Kg2 {[%emt 0:00:02]} Nd4 {[%emt 0:00:07]} (32... Re7 $14 33. Qc5 Rd7) 33. Bc4 $18 {[%emt 0:00:05]} Ne6 {[%emt 0:00:02]} 34. Qxa7 {[%emt 0:00:12]} Re4 {[%emt 0:00:15]} 35. Bd5 {[%emt 0:00:33]} Re5 {[%emt 0:00:05]} 36. Bxe6 {[%emt 0:00:03]} (36. Qb7 $18) 36... Rxe6 $16 {[%emt 0:00:00]} 37. Qd7 {[%emt 0:00:13]} Re2 {[%emt 0:00:10]} 38. Qd5 {[%emt 0:00:05] Weighted Error Value: White=0.25 (precise) /Black=0.28 (precise)} 1/2-1/2